bitfinex/quotes_ETHUSD_20251108
["timestamp","ask_amount","ask_price","bid_price","bid_amount"]
[1762564924261,4.95608146,3446.0,3445.9,0.001]
[1762564926582,3.3080931,3445.2,3445.1,0.006]
[1762564926792,3.5562931,3445.2,3445.1,0.006]
[1762564926995,4.0344931,3445.2,3445.1,0.006]
[1762564927292,4.81688212,3445.2,3445.1,0.006]
[1762564928994,4.81688212,3445.2,3444.9,0.001]
[1762564928995,4.56797361,3445.0,3444.9,0.001]
[1762564929214,4.71285788,3444.9,3444.8,0.001]
[1762564929352,5.43685788,3444.9,3444.8,0.001]
[1762564929684,6.12785788,3444.9,3444.8,0.001]
[1762564929904,7.10915833,3444.9,3444.8,0.001]
[1762564932271,4.56814214,3444.8,3444.7,0.001]
[1762564932480,5.05934214,3444.8,3444.7,0.001]
[1762564933692,0.78238902,3445.2,3444.7,0.4938]
[1762564933878,0.4893,3445.5,3444.7,0.4938]
[1762564934053,0.89,3445.6,3444.7,0.982]
[1762564934256,1.1554622,3446.0,3444.7,3.88498102]
[1762564934257,3.10113291,3445.8,3444.7,3.88498102]
[1762564934570,1.665216,3445.5,3444.9,2.90282472]
[1762564934763,3.10113291,3445.8,3444.8,0.4882]
[1762564934764,0.199,3445.8,3444.8,0.4882]
[1762564934988,2.90213677,3445.8,3445.0,2.90268092]
[1762564935184,0.1448,3445.0,3444.8,0.4882]
[1762564935386,0.405504,3445.7,3444.8,3.39111162]
[1762564935595,2.90227629,3445.6,3444.9,3.39563691]
[1762564935794,3.30770208,3445.7,3445.0,2.90273797]
[1762564935989,3.5895892,3445.7,3445.0,2.90273797]
[1762564936195,2.9022798,3445.6,3445.0,2.90273797]
[1762564936395,0.405504,3445.5,3444.7,0.001]
[1762564936583,0.2571,3445.1,3444.7,0.001]
[1762564936895,2.90261395,3445.2,3444.7,0.001]
[1762564937096,0.58050389,3445.1,3444.7,0.4892]
[1762564937265,1.097504,3445.6,3445.1,0.4928]
[1762564937591,0.405504,3445.5,3445.1,0.4928]
[1762564937770,2.90242095,3445.4,3445.1,0.4928]
[1762564937967,0.405504,3445.5,3445.1,0.4928]
[1762564937968,3.30787327,3445.5,3445.1,0.4928]
[1762564938179,3.59268043,3445.4,3445.1,0.4928]
[1762564938900,0.69020571,3445.4,3445.1,0.4928]
[1762564939099,0.69020571,3445.4,3445.1,0.6918]
[1762564939401,0.69020571,3445.4,3445.1,1.18]
[1762564939903,0.1855,3446.1,3445.3,3.39529699]
[1762564940195,0.405504,3445.9,3445.4,0.4928]
[1762564940399,2.90213778,3445.8,3445.4,0.4928]
[1762564941496,2.90217837,3445.7,3445.4,0.4928]
[1762564942366,0.407504,3446.0,3445.4,0.4928]
[1762564942567,1.259712,3445.9,3445.4,0.4928]
[1762564942878,2.90208369,3445.8,3445.4,0.4928]
[1762564943076,2.90208369,3445.8,3444.7,0.001]
[1762564943077,0.405504,3445.4,3444.7,0.001]
[1762564943302,2.90275329,3445.1,3444.7,0.001]
[1762564943480,0.39343607,3445.0,3444.7,0.001]
[1762564943667,2.90275329,3445.1,3444.7,0.001]
[1762564944107,0.405504,3445.3,3444.7,0.001]
[1762564944402,2.90290582,3444.9,3444.7,0.001]
[1762564944710,4.02663014,3444.8,3444.7,0.001]
[1762564945778,3.56553014,3444.8,3444.7,0.001]
[1762564945979,5.09896012,3444.8,3444.7,0.001]
[1762564946680,4.63786012,3444.8,3444.7,0.001]
[1762564947220,1.73493398,3444.8,3444.7,0.001]
[1762564947517,0.405504,3444.8,3444.7,0.001]
[1762564947678,0.405504,3445.0,3444.7,0.001]
[1762564948091,0.2312,3444.8,3444.7,0.001]
[1762564948307,2.90287051,3444.9,3444.7,0.001]
[1762564948512,0.199,3445.2,3444.7,0.001]
[1762564948713,0.405504,3445.1,3444.8,0.4928]
[1762564949086,0.405504,3445.2,3445.0,0.4928]
[1762564949286,1.259712,3445.1,3444.7,0.001]
[1762564949480,0.1448,3444.8,3444.7,0.001]
[1762564949890,0.1448,3444.8,3444.7,0.4938]
[1762564951015,3.27892614,3444.8,3444.7,0.001]
[1762564951225,4.07174349,3444.8,3444.7,0.001]
[1762564951428,4.07174349,3444.8,3444.7,0.4938]
[1762564951429,0.93761735,3444.8,3444.7,0.4938]
[1762564951581,4.31644349,3444.8,3444.7,0.001]
[1762564951781,4.96644749,3444.8,3444.7,0.001]
[1762564953337,5.65844749,3444.8,3444.7,0.001]
[1762564953537,6.91815949,3444.8,3444.7,0.001]
[1762564956935,5.82065549,3444.8,3444.7,0.001]
[1762564957134,6.26815549,3444.8,3444.7,0.001]
[1762564957340,6.12335549,3444.8,3444.7,0.001]
[1762564957647,6.12335549,3444.8,3444.7,0.4628]
[1762564957648,2.74452935,3444.8,3444.7,0.4628]
[1762564957813,2.90276018,3445.0,3444.7,0.4628]
[1762564958138,1.259712,3444.9,3444.7,0.4628]
[1762564958345,1.259712,3444.9,3444.7,0.9403]
[1762564958518,1.259712,3444.9,3444.8,0.4618]
[1762564959045,1.665216,3444.9,3444.8,0.4618]
[1762564959356,3.30834588,3444.9,3444.8,0.4618]
[1762564959506,3.04772614,3444.8,3444.7,0.001]
[1762564959706,3.05242614,3444.8,3444.7,0.001]
[1762564959909,3.04772614,3444.8,3444.7,0.001]
[1762564960115,0.1448,3444.8,3444.7,0.4628]
[1762564960614,3.04772614,3444.8,3444.7,0.4628]
[1762564961846,3.04772614,3444.8,3444.7,0.001]
[1762564962043,3.75803086,3444.8,3444.7,0.001]
[1762564962247,4.41643486,3444.8,3444.7,0.001]
[1762564964255,1.26060872,3444.8,3444.7,0.457]
[1762564964556,4.16353486,3444.8,3444.7,0.001]
[1762564967316,4.16353486,3444.8,3444.7,0.457]
[1762564967956,4.39543486,3444.8,3444.7,0.001]
[1762564968484,1.26060872,3444.8,3444.7,0.001]
[1762564968808,3.45323014,3444.8,3444.7,0.457]
[1762564969473,3.45323014,3444.8,3444.7,0.001]
[1762564969681,0.002,3446.2,3445.7,2.90216791]
[1762564969856,0.002,3446.2,3445.7,3.35816791]
[1762564970050,0.002,3446.2,3445.7,4.49633244]
[1762564970250,0.002,3446.2,3445.7,4.46731077]
[1762564970458,0.002,3446.2,3445.7,6.17202519]
[1762564970682,0.002,3446.2,3445.7,5.72702277]
[1762564972696,0.002,3446.2,3445.7,5.10097991]
[1762564977308,0.002,3446.2,3445.7,0.456]
[1762564977484,0.002,3446.2,3445.6,2.90224991]
[1762564977684,0.407504,3446.2,3445.6,2.90224991]
[1762564977880,0.407504,3446.2,3445.3,0.4831]
[1762564978201,2.9018669,3446.1,3445.4,0.4831]
[1762564978371,0.002,3446.2,3445.4,0.4831]
[1762564978771,0.4886,3446.1,3445.3,2.90245581]
[1762564978971,0.405504,3446.1,3445.7,0.456]
[1762564980010,0.002,3446.2,3445.7,0.456]
[1762564980397,0.002,3446.2,3445.7,3.35816791]
[1762564980598,0.002,3446.2,3445.7,3.84126791]
[1762564980909,0.002,3446.2,3445.7,4.5156206]
[1762564981219,0.3981,3445.8,3445.2,0.6798]
[1762564981507,0.1448,3445.5,3445.0,0.1967]
[1762564981710,0.894104,3445.7,3444.6,0.001]
[1762564981910,2.90266155,3445.2,3444.6,0.001]
[1762564982286,3.48317071,3445.2,3444.7,0.4559]
[1762564982513,2.90267336,3445.1,3444.7,0.001]
[1762564982837,3.76882896,3445.1,3444.7,0.001]
[1762564983213,2.90277751,3445.0,3444.7,0.001]
[1762564983541,0.405504,3445.1,3444.7,0.001]
[1762564983750,0.405504,3445.5,3445.0,0.459]
[1762564983924,0.405504,3445.5,3444.8,3.35774749]
[1762564983925,0.6662752,3445.5,3445.1,0.459]
[1762564984127,0.6662752,3445.5,3444.8,0.4549]
[1762564984128,0.1448,3445.1,3444.7,2.90397733]
[1762564984326,2.90247006,3445.4,3444.8,2.90291164]
[1762564984641,0.6662752,3445.5,3445.0,2.9027031]
[1762564984944,3.56862178,3445.5,3444.9,2.90280974]
[1762564985242,0.6470807,3445.4,3444.9,2.90280974]
[1762564985559,0.6662752,3445.5,3444.8,0.4549]
[1762564985720,0.8874,3445.8,3445.4,0.459]
[1762564985721,0.405504,3445.7,3445.4,0.459]
[1762564986109,0.002,3445.8,3445.4,0.459]
[1762564986550,0.002,3445.8,3445.4,3.81631523]
[1762564986724,0.002,3445.8,3445.4,0.9139]
[1762564986905,0.002,3445.8,3445.7,0.459]
[1762564987110,0.1448,3445.3,3445.2,0.4549]
[1762564987412,0.1448,3445.5,3445.4,2.90237647]
[1762564987608,0.002,3445.8,3445.7,3.36116791]
[1762564988050,0.002,3445.8,3445.7,3.81606791]
[1762564988405,0.1468,3445.8,3445.7,3.81606791]
[1762564988710,0.1468,3445.8,3445.4,0.64530656]
[1762564988909,0.002,3445.8,3445.2,2.90253533]
[1762564989132,0.002,3445.8,3445.3,2.90249973]
[1762564989512,0.002,3445.8,3445.4,0.4549]
[1762564989723,0.002,3445.8,3445.4,3.35727108]
[1762564989921,0.002,3445.8,3445.4,0.4549]
[1762564990136,0.1448,3445.4,3445.1,0.1932]
[1762564990336,0.1448,3445.2,3445.1,3.09587336]
[1762564990560,0.1448,3445.2,3445.1,0.1932]
[1762564990735,0.1448,3445.2,3445.1,0.6522]
[1762564990933,0.1448,3445.2,3445.1,3.55487336]
[1762564991337,0.1448,3445.2,3444.8,0.001]
[1762564991537,2.90236882,3445.5,3444.8,0.001]
[1762564991735,0.62671547,3445.5,3444.8,0.001]
[1762564991975,0.4606,3445.5,3444.8,2.90387309]
[1762564992275,2.90242761,3445.4,3444.8,2.90387309]
[1762564992576,2.90257995,3445.3,3444.8,0.001]
[1762564993252,0.002,3445.8,3444.8,0.001]
[1762564993549,0.868104,3445.8,3444.9,0.4549]
[1762564993787,0.405504,3445.6,3444.9,0.4549]
[1762564993959,2.90243175,3445.4,3444.9,0.4549]
[1762564994561,0.405504,3445.6,3444.9,0.4549]
[1762564994723,0.407504,3445.8,3444.8,0.001]
[1762564994929,0.405504,3445.5,3444.8,2.90392344]
[1762564995126,2.90248062,3445.4,3444.8,2.90392344]
[1762564995358,2.90258261,3445.3,3444.8,0.001]
[1762564995562,1.12768528,3445.4,3444.8,0.001]
[1762564995741,2.90268949,3445.1,3444.8,0.001]
[1762564996129,2.90268949,3445.1,3444.8,0.4559]
[1762564996841,0.405504,3445.3,3444.8,0.001]
[1762564997053,0.405504,3445.0,3444.8,0.001]
[1762564997235,3.30830695,3445.0,3444.8,0.001]
[1762564998364,3.30817924,3445.1,3444.8,0.001]
[1762564998693,2.90275849,3445.0,3444.8,0.001]
[1762564999393,0.405504,3445.1,3444.8,0.001]
[1762565000396,0.15331893,3445.2,3444.8,0.001]
[1762565000601,0.405504,3445.4,3444.8,0.001]
[1762565000893,0.405504,3445.2,3444.8,0.001]
[1762565001065,2.90269192,3445.1,3444.8,0.001]
[1762565001251,2.90262133,3445.2,3444.8,0.001]
[1762565001448,3.56973818,3445.2,3444.8,0.001]
[1762565002051,2.90267471,3445.1,3444.8,0.001]
[1762565002252,3.5697415,3445.2,3444.8,0.001]
[1762565002496,0.66711685,3445.2,3444.8,0.001]
[1762565002695,2.90274993,3445.1,3444.8,0.001]
[1762565003302,0.405504,3445.2,3444.8,2.90389897]
[1762565003797,0.405504,3445.2,3444.8,0.001]
[1762565003994,0.2835,3444.9,3444.8,0.001]
[1762565004493,2.90283663,3445.0,3444.8,0.001]
[1762565005144,4.05064588,3444.9,3444.8,0.001]
[1762565008295,5.31035788,3444.9,3444.8,0.001]
[1762565008493,4.71294214,3444.8,3444.7,0.001]
[1762565008848,5.87014214,3444.8,3444.7,0.001]
[1762565010694,5.72534214,3444.8,3444.7,0.001]
[1762565010894,6.87843594,3444.8,3444.7,0.001]
[1762565011393,6.41783594,3444.8,3444.7,0.001]
[1762565011731,6.87843594,3444.8,3444.7,0.001]
[1762565013645,6.89963594,3444.8,3444.7,0.001]
[1762565014815,5.72583594,3444.8,3444.7,0.001]
[1762565015341,6.20763594,3444.8,3444.7,0.001]
[1762565016343,5.72583594,3444.8,3444.7,0.001]
[1762565017640,6.20763594,3444.8,3444.7,0.001]
[1762565018929,4.82621069,3444.6,3444.5,1e-08]
[1762565019134,5.51821069,3444.6,3444.5,1e-08]
[1762565019355,6.00001069,3444.6,3444.5,1e-08]
[1762565020872,5.51821069,3444.6,3444.5,1e-08]
[1762565021388,6.00001069,3444.6,3444.5,1e-08]
[1762565021549,6.91213115,3444.6,3444.5,1e-08]
[1762565021875,6.65423115,3444.6,3444.5,1e-08]
[1762565022172,6.93743115,3444.6,3444.5,1e-08]
[1762565022541,7.39653115,3444.6,3444.5,1e-08]
[1762565023269,6.93743115,3444.6,3444.5,1e-08]
[1762565023874,6.65423115,3444.6,3444.5,1e-08]
[1762565024095,5.26031069,3444.6,3444.5,0.47830001]
[1762565024267,5.26031069,3444.6,3444.5,1e-08]
[1762565025976,5.26031069,3444.6,3444.5,0.95260001]
[1762565025977,4.16280669,3444.6,3444.5,0.95260001]
[1762565026163,4.16280669,3444.6,3444.5,0.47830001]
[1762565026359,4.56831069,3444.6,3444.5,0.47830001]
[1762565027386,5.38464096,3444.6,3444.5,0.47830001]
[1762565028497,5.38464096,3444.6,3444.5,1e-08]
[1762565028657,5.66784096,3444.6,3444.5,1e-08]
[1762565028857,6.12694096,3444.6,3444.5,1e-08]
[1762565029694,5.38464096,3444.6,3444.5,0.47830001]
[1762565030193,5.38464096,3444.6,3444.5,1e-08]
[1762565030383,5.66784096,3444.6,3444.5,1e-08]
[1762565031004,6.12694096,3444.6,3444.5,1e-08]
[1762565031863,5.66784096,3444.6,3444.5,1e-08]
[1762565032374,5.38464096,3444.6,3444.5,0.47830001]
[1762565032575,4.97913696,3444.6,3444.5,0.47830001]
[1762565032772,2.90309469,3444.6,3444.5,0.47830001]
[1762565033192,3.30859869,3444.6,3444.5,0.47830001]
[1762565033562,3.30859869,3444.6,3444.5,1e-08]
[1762565033785,3.80029869,3444.6,3444.5,1e-08]
[1762565033982,5.31271069,3444.6,3444.5,1e-08]
[1762565034216,6.20348096,3444.6,3444.5,1e-08]
[1762565039907,0.4868,3444.2,3444.1,1e-08]
[1762565040106,4.48773585,3444.2,3444.1,1e-08]
[1762565040274,4.74523585,3444.2,3444.1,1e-08]
[1762565040592,5.92637486,3444.2,3444.1,1e-08]
[1762565040792,7.18608686,3444.2,3444.1,1e-08]
[1762565043611,15.76957635,3444.2,3444.1,1e-08]
[1762565044509,11.2412037,3444.2,3444.1,1e-08]
[1762565046477,10.9837037,3444.2,3444.1,1e-08]
[1762565047813,11.2412037,3444.2,3444.1,1e-08]
[1762565047978,5.34428286,3444.2,3444.1,0.45780001]
[1762565048178,6.03628286,3444.2,3444.1,0.45780001]
[1762565048406,6.44178686,3444.2,3444.1,0.45780001]
[1762565050797,6.44178686,3444.2,3444.1,1e-08]
[1762565052527,6.44178686,3444.2,3444.1,1.14520001]
[1762565052744,0.405504,3444.2,3444.1,1.14520001]
[1762565053040,0.692,3444.9,3444.1,1.14520001]
[1762565053187,4.1631318,3444.3,3444.2,0.4901]
[1762565053384,2.9034198,3444.3,3444.2,0.4901]
[1762565053608,2.9034198,3444.3,3444.2,0.9479]
[1762565053826,0.405504,3444.7,3444.2,0.9479]
[1762565054122,3.30876726,3444.4,3444.3,0.4901]
[1762565054501,3.30876726,3444.4,3444.3,0.9479]
[1762565055100,0.405504,3444.4,3444.3,0.9479]
[1762565055330,4.56847926,3444.4,3444.3,0.9479]
[1762565057190,0.694,3445.2,3444.3,0.9479]
[1762565057389,3.5965891,3445.2,3445.1,0.6551]
[1762565057599,2.9045891,3445.2,3445.1,0.6551]
[1762565057823,2.9045891,3445.2,3445.1,1.1452]
[1762565058024,3.3100931,3445.2,3445.1,1.1452]
[1762565058258,2.9045891,3445.2,3445.1,1.1452]
[1762565058757,3.3100931,3445.2,3445.1,1.1452]
[1762565060013,0.002,3445.2,3445.1,1.1452]
[1762565060214,2.9045891,3445.2,3445.1,1.1452]
[1762565061112,0.002,3445.2,3445.1,1.1452]
[1762565061318,2.9045891,3445.2,3445.1,1.1452]
[1762565061519,0.002,3445.2,3445.1,1.1452]
[1762565062524,0.002,3445.2,3445.1,4.74295315]
[1762565063313,0.002,3445.2,3445.1,1.84027979]
[1762565063519,0.1448,3445.4,3445.1,1.1452]
[1762565063755,0.1468,3445.6,3445.5,3.36013638]
[1762565063976,0.1468,3445.6,3445.5,3.85023638]
[1762565064318,0.1468,3445.6,3445.5,0.9479]
[1762565065171,0.1468,3445.6,3445.5,1.33293766]
[1762565065320,0.1468,3445.6,3445.5,4.23527404]
[1762565065728,0.1468,3445.6,3445.5,1.33293766]
[1762565066661,0.1468,3445.6,3445.5,0.9479]
[1762565066859,3.04905214,3445.6,3445.5,0.9479]
[1762565067436,0.1468,3445.6,3445.5,0.9479]
[1762565069557,3.04905214,3445.6,3445.5,0.4578]
[1762565071257,0.1468,3445.6,3445.5,0.9479]
[1762565071659,0.1468,3445.6,3445.1,0.1973]
[1762565071660,3.04905214,3445.6,3445.1,0.1973]
[1762565071832,2.90425214,3445.6,3445.5,0.4578]
[1762565073273,0.002,3445.6,3445.5,0.9464]
[1762565073841,0.002,3445.6,3445.5,4.23362371]
[1762565074068,0.002,3445.6,3445.5,1.33128733]
[1762565074246,0.002,3445.6,3445.5,0.9464]
[1762565075124,0.002,3445.6,3445.5,0.4578]
[1762565075360,0.002,3445.6,3445.5,0.9464]
[1762565075944,0.1448,3445.5,3445.2,0.4886]
[1762565076273,0.1448,3445.5,3445.4,0.454]
[1762565076483,2.90428726,3445.6,3445.4,0.454]
[1762565076687,2.90428726,3445.6,3445.2,0.4886]
[1762565076688,2.90428726,3445.6,3445.5,0.454]
[1762565077171,3.04716356,3445.5,3445.1,0.1973]
[1762565077459,0.1448,3445.2,3445.1,0.6859]
[1762565077830,0.1448,3445.2,3445.1,4.04257336]
[1762565078631,0.1448,3445.2,3445.1,1.1399]
[1762565080072,0.1448,3445.2,3445.1,0.6513]
[1762565080270,2.90274736,3445.1,3444.5,3.39176307]
[1762565080884,0.405504,3445.3,3444.5,3.39176307]
[1762565081091,0.405504,3445.3,3444.5,0.4886]
[1762565081092,2.90281513,3445.0,3444.5,0.4886]
[1762565082385,2.90272678,3445.1,3444.5,0.4886]
[1762565082583,2.90275942,3445.0,3444.5,0.4886]
[1762565084114,0.4731,3445.3,3444.5,0.4886]
[1762565084390,0.405504,3445.1,3444.3,0.4501]
[1762565084688,2.90281991,3445.0,3444.4,3.35334627]
[1762565084902,2.90286381,3444.9,3444.4,0.4501]
[1762565085557,2.90298787,3444.8,3444.4,0.4501]
[1762565085763,2.90287872,3444.9,3444.4,0.4501]
[1762565086071,3.23950703,3444.9,3444.4,0.4501]
[1762565086446,3.23947837,3444.9,3444.4,0.4501]
[1762565086643,1.22076353,3447.5,3444.8,0.4946]
[1762565086644,0.007,3445.9,3444.8,0.4946]
[1762565086848,0.007,3445.9,3445.5,0.4946]
[1762565087153,0.007,3445.9,3445.5,0.9447]
[1762565087486,2.90413581,3445.8,3445.5,0.9447]
[1762565088506,0.2669,3445.6,3444.9,0.1975]
[1762565088711,0.2669,3445.6,3445.1,2.90266121]
[1762565088912,0.002,3445.6,3445.1,2.90266121]
[1762565089116,0.002,3445.6,3445.2,0.4501]
[1762565089310,0.002,3445.6,3445.5,0.4946]
[1762565089486,0.002,3445.6,3445.5,0.9447]
[1762565090013,0.002,3445.6,3445.5,0.4946]
[1762565090507,0.002,3445.6,3445.5,0.9447]
[1762565093113,2.90425214,3445.6,3445.5,0.4946]
[1762565093278,0.1448,3445.5,3444.9,0.1975]
[1762565093480,0.1448,3445.0,3444.9,3.5503957]
[1762565093712,0.1448,3445.0,3444.9,3.1002957]
[1762565093928,0.1448,3445.0,3444.9,3.5948957]
[1762565094277,0.1448,3445.0,3444.9,4.0449957]
[1762565094474,0.1448,3445.0,3444.9,4.73978889]
[1762565096847,0.1448,3445.0,3444.9,0.6921]
[1762565097042,0.1448,3445.0,3444.9,0.4946]
[1762565097649,0.1448,3445.0,3444.9,3.84754188]
[1762565100844,0.002,3445.6,3445.5,2.90233638]
[1762565101159,0.002,3445.6,3445.5,3.39693638]
[1762565101450,0.002,3445.6,3445.5,3.84703638]
[1762565101641,0.002,3445.6,3445.5,4.47697259]
[1762565102737,0.002,3445.6,3445.5,4.02687259]
[1762565102970,0.002,3445.6,3445.5,4.49067259]
[1762565105697,0.002,3445.6,3445.5,4.51969595]
[1762565105876,0.002,3445.6,3445.5,4.49067259]
[1762565106043,0.002,3445.6,3445.5,4.63547259]
[1762565106579,0.002,3445.6,3445.5,5.89518459]
[1762565106880,0.002,3445.6,3445.5,6.3320137]
[1762565107098,0.002,3445.6,3445.5,6.30299034]
[1762565107247,0.002,3445.8,3445.7,4.16187991]
[1762565107598,0.002,3445.8,3445.7,6.2627028]
[1762565107744,0.002,3445.8,3445.7,6.7265028]
[1762565108355,0.002,3445.8,3445.7,6.31869705]
[1762565110442,0.002,3445.8,3445.7,10.61621697]
[1762565113157,0.002,3445.8,3445.7,10.00761697]
[1762565113499,0.1468,3445.8,3445.7,10.00761697]
[1762565113657,0.1468,3445.8,3445.6,2.90219699]
[1762565113658,0.8907,3445.8,3445.6,2.90219699]
[1762565113866,0.6012,3445.8,3445.7,2.90216791]
[1762565114105,0.0029,3445.5,3445.1,0.001]
[1762565114303,0.0056,3445.2,3445.1,0.001]
[1762565114583,2.90411025,3445.8,3445.1,0.001]
[1762565114758,0.4641,3445.5,3445.2,2.90256978]
[1762565115284,0.60107367,3445.7,3445.1,0.001]
[1762565115462,0.4661,3445.8,3445.2,2.90252356]
[1762565115648,2.90408443,3445.8,3445.2,2.90252356]
[1762565115849,0.002,3445.8,3445.3,2.90249161]
[1762565116263,0.4661,3445.8,3445.3,2.90249161]
[1762565116504,0.4661,3445.8,3445.1,0.03002673]
[1762565116505,2.90223545,3445.7,3445.1,2.90364127]
[1762565116667,0.002,3445.8,3445.3,2.90245515]
[1762565116849,0.002,3445.8,3445.2,2.90256382]
[1762565117049,2.90409206,3445.8,3445.2,2.90256382]
[1762565117244,0.4641,3445.7,3445.2,2.90256382]
[1762565117774,0.4641,3445.7,3445.3,2.90247186]
[1762565117984,0.002,3445.8,3445.2,2.90255133]
[1762565118186,0.002,3445.8,3445.3,0.02902504]
[1762565118360,0.002,3445.8,3445.3,2.93152167]
[1762565118695,2.90408896,3445.8,3445.3,0.02902504]
[1762565118894,3.57255037,3445.8,3445.3,0.02902504]
[1762565119207,3.57255037,3445.8,3445.1,2.90361019]
[1762565119208,0.67046141,3445.8,3445.1,2.90361019]
[1762565119394,0.002,3445.8,3445.3,2.9024983]
[1762565119694,0.002,3445.8,3445.2,0.02902589]
[1762565119695,0.002,3445.8,3445.2,2.90255596]
[1762565120063,0.002,3445.8,3445.1,0.001]
[1762565120265,0.002,3445.8,3445.3,0.4638]
[1762565120477,0.002,3445.8,3445.5,2.90227782]
[1762565120793,0.002,3445.8,3445.3,3.36629147]
[1762565120996,0.002,3445.8,3445.4,2.90240414]
[1762565121502,0.002,3445.8,3445.3,3.36628079]
[1762565121799,0.002,3445.8,3445.4,2.90237315]
[1762565121999,0.4661,3445.8,3445.4,2.90237315]
[1762565122365,0.2808,3445.5,3445.4,2.90237315]
[1762565122688,0.4661,3445.8,3445.4,2.90237315]
[1762565123068,0.4661,3445.8,3445.3,2.90246951]
[1762565123679,0.4661,3445.8,3445.4,2.90241615]
[1762565123880,0.2808,3445.2,3445.1,0.001]
[1762565124300,0.7431,3445.2,3445.1,0.001]
[1762565124497,3.6456891,3445.2,3445.1,0.001]
[1762565124704,0.7431,3445.2,3445.1,0.001]
[1762565124907,3.6456891,3445.2,3445.1,0.001]
[1762565125404,1.397913,3445.2,3445.1,0.001]
[1762565125817,0.2808,3445.2,3445.1,0.001]
[1762565126005,0.7431,3445.2,3445.1,0.001]
[1762565126410,0.405504,3445.4,3445.1,0.001]
[1762565127013,2.90410393,3445.8,3445.1,0.001]
[1762565127226,2.90410393,3445.8,3445.2,3.3663891]
[1762565127227,0.002,3445.8,3445.2,3.3663891]
[1762565127390,0.1448,3445.3,3445.2,3.3663891]
[1762565127706,0.1448,3445.3,3445.2,4.01234719]
[1762565127899,0.1448,3445.3,3445.2,4.47384719]
[1762565128295,0.002,3445.8,3445.6,2.90218158]
[1762565129257,0.002,3445.8,3445.7,3.39268958]
[1762565130630,0.002,3445.8,3445.7,3.85648958]
[1762565130830,0.4776,3445.8,3445.7,0.02902167]
[1762565131008,0.4776,3445.8,3445.3,2.90250403]
[1762565131009,0.1448,3445.7,3445.3,2.90250403]
[1762565131203,0.1448,3445.3,3445.2,2.90257139]
[1762565131409,0.1448,3445.3,3445.2,3.54853353]
[1762565131748,0.4245,3445.3,3445.1,0.001]
[1762565131934,0.0046,3445.2,3445.1,0.001]
[1762565134478,2.90225696,3445.6,3445.1,0.4548]
[1762565134772,0.4877,3445.2,3445.1,0.001]
[1762565135283,4.0502931,3445.2,3445.1,0.001]
[1762565135464,4.74557228,3445.2,3445.1,0.001]
[1762565137946,1.84298318,3445.2,3445.1,0.001]
[1762565138175,4.0502931,3445.2,3445.1,0.001]
[1762565140481,1.147704,3445.2,3445.1,0.001]
[1762565140642,4.0502931,3445.2,3445.1,0.001]
[1762565142497,0.890904,3445.2,3445.1,0.001]
[1762565142638,0.69,3445.6,3445.1,0.4944]
[1762565142839,0.405504,3445.5,3445.1,0.4944]
[1762565143179,2.9023389,3445.5,3445.1,0.6882]
[1762565143543,0.697,3445.9,3445.1,0.6882]
[1762565143771,0.405504,3445.7,3445.1,0.6882]
[1762565144169,2.90225582,3445.6,3445.1,0.6882]
[1762565144377,0.405504,3445.7,3445.1,0.71722673]
[1762565144575,3.10193469,3445.8,3445.2,2.93155139]
[1762565144967,0.002,3445.8,3445.3,2.90243855]
[1762565145293,0.002,3445.8,3445.7,0.4934]
[1762565147780,0.1448,3445.7,3445.1,0.6879]
[1762565147981,3.04703765,3445.7,3445.1,0.6879]
[1762565148144,0.1448,3445.4,3445.1,3.59056784]
[1762565148482,0.1448,3445.4,3445.2,2.90257121]
[1762565148642,2.90411616,3445.8,3445.1,0.6879]
[1762565148643,2.9021841,3445.7,3445.3,0.4934]
[1762565151115,0.1448,3445.3,3445.1,0.001]
[1762565151324,0.2757,3445.4,3445.1,0.001]
[1762565151590,2.90233936,3445.5,3445.1,0.29147937]
[1762565151767,2.90227862,3445.6,3445.1,0.001]
[1762565152283,2.90235216,3445.5,3445.1,0.001]
[1762565152471,2.90228941,3445.6,3445.1,0.001]
[1762565153487,2.90409122,3445.8,3445.1,0.001]
[1762565153488,2.90233646,3445.5,3445.1,0.001]
[1762565154091,2.90243819,3445.4,3445.1,0.001]
[1762565154294,2.90218573,3445.7,3445.1,0.001]
[1762565154798,0.407504,3445.8,3445.1,0.001]
[1762565155009,2.90217376,3445.7,3445.1,2.90364052]
[1762565155668,2.90217376,3445.7,3445.1,4.02679635]
[1762565156580,2.90217376,3445.7,3445.2,2.93160684]
[1762565156785,2.90409255,3445.8,3445.6,0.4934]
[1762565156974,0.4693,3445.8,3445.2,2.90258095]
[1762565157178,0.1448,3445.2,3445.1,2.90363348]
[1762565157385,0.1448,3445.2,3445.1,3.53368222]
[1762565157593,0.1448,3445.2,3445.1,4.52018222]
[1762565159989,0.1448,3445.2,3445.1,4.02708222]
[1762565160216,0.1448,3445.2,3445.1,4.54920895]
[1762565160386,0.002,3445.8,3445.7,2.90216791]
[1762565160590,0.002,3445.8,3445.7,0.78361679]
[1762565160801,0.2758,3445.8,3445.6,2.90221489]
[1762565161028,0.2758,3445.8,3445.5,2.90230462]
[1762565161395,0.0047,3445.6,3445.1,0.63104874]
[1762565161626,2.90699824,3445.6,3445.1,0.001]
[1762565161932,2.90899824,3445.6,3445.1,0.001]
[1762565162497,0.2469,3445.2,3445.1,0.001]
[1762565162696,0.002,3445.6,3445.1,0.001]
[1762565162891,0.35373711,3445.6,3445.1,0.4869]
[1762565163140,0.002,3445.6,3445.1,0.9664]
[1762565163307,0.002,3445.6,3445.1,4.06571892]
[1762565163508,0.4918,3445.6,3445.1,0.001]
[1762565163922,3.39411189,3445.6,3445.1,0.001]